fUST/lending_fUST_20250404
["ID","MTS","AMOUNT","RATE_DAILY","PERIOD"]
[357132068,1743775847321,-837.73,0.00016164,2]
[357132069,1743775847331,-781.25,0.00016425,2]
[357132070,1743775847340,-12520.15255516,0.00016425,2]
[357132071,1743775847351,-160.0,0.00016425,2]
[357132072,1743775847361,-419.12848707,0.00016425,2]
[357132073,1743775847371,-160.0,0.00016425,2]
[357132074,1743775847381,-383.53,0.00016438,2]
[357132075,1743775847392,-837.73,0.00016438,2]
[357132076,1743775847402,-837.73,0.00016712,2]
[357132077,1743775847412,-542.0,0.00016796,2]
[357132078,1743775847422,-1038.0,0.00016796,2]
[357132079,1743775847431,-151.0,0.00016874,2]
[357132080,1743775847441,-151.0,0.00016874,2]
[357132081,1743775847451,-151.0,0.00016874,2]
[357132082,1743775847461,-151.0,0.00016874,2]
[357132083,1743775847470,-151.0,0.00016874,2]
[357132084,1743775847480,-151.0,0.00016874,2]
[357132085,1743775847490,-151.0,0.00016874,2]
[357132086,1743775847502,-151.0,0.00016874,2]
[357132087,1743775847512,-151.0,0.00016874,2]
[357132088,1743775847521,-151.0,0.00016874,2]
[357132089,1743775847531,-151.0,0.00016874,2]
[357132090,1743775847542,-151.0,0.00016874,2]
[357132091,1743775847552,-151.0,0.00016874,2]
[357132092,1743775847562,-151.0,0.00016874,2]
[357132093,1743775847575,-151.0,0.00016874,2]
[357132094,1743775847585,-151.0,0.00016874,2]
[357132095,1743775847595,-837.73,0.00016986,2]
[357132096,1743775847608,-5249.49649683,0.0001721,3]
[357132097,1743775847618,-19466.52661104,0.0001721,3]
[357132098,1743775847629,-326.76463126,0.0001721,3]
[357132099,1743775847638,-4859.35524914,0.0001721,2]
[357132100,1743775847648,-837.73,0.0001726,2]
[357132101,1743775847659,-969.83263926,0.00017319,2]
[357132102,1743775847669,-837.73,0.00017534,2]
[357132103,1743775847680,-837.73,0.00017808,2]
[357132104,1743775847690,-837.73,0.00018082,2]
[357132105,1743775847699,-4859.35524914,0.00018314,2]
[357132106,1743775847709,-837.73,0.00018356,2]
[357132107,1743775847719,-837.73,0.0001863,2]
[357132108,1743775847730,-837.73,0.00018904,2]
[357132109,1743775847740,-837.73,0.00019178,2]
[357132110,1743775847750,-151.0,0.00019178,2]
[357132111,1743775847760,-156.587,0.00019233,2]
[357132112,1743775847770,-217.86016674,0.00019288,2]
[357132113,1743775847779,-44581.96058937,0.00019329,2]
[357132114,1743775847789,-4859.35524914,0.00019417,2]
[357132115,1743775847799,-837.73,0.00019452,2]
[357132116,1743775847808,-1000.0,0.00019569,2]
[357132117,1743775847818,-837.73,0.00019726,2]
[357132118,1743775847828,-1000.0,0.00019769,2]
[357132119,1743775847837,-1000.0,0.00019769,2]
[357132120,1743775847847,-1000.0,0.00019769,2]
[357132121,1743775847858,-1000.0,0.00019769,2]
[357132122,1743775847867,-1000.0,0.00019779,2]
[357132123,1743775847877,-1000.0,0.00019853,2]
[357132124,1743775847887,-160.0,0.0002,3]
[357132125,1743775847897,-837.84246093,0.0002,2]
[357132126,1743775847907,-4859.35524914,0.00020521,2]
[357132127,1743775847917,-177.554421,0.00020548,2]
[357132128,1743775847926,-152.24,0.00021,2]
[357132129,1743775847936,-183.70674758,0.00021065,2]
[357132130,1743775847945,-969.83263926,0.00021416,2]
[357132131,1743775847954,-4859.35524914,0.00021624,3]
[357132132,1743775847964,-2000.0,0.00021683,4]
[357132133,1743775847974,-500.0,0.00021973,2]
[357132134,1743775847984,-500.0,0.00021973,2]
[357132135,1743775847994,-500.0,0.00021973,2]
[357132136,1743775848003,-500.0,0.00021973,2]
[357132137,1743775848013,-500.0,0.00021973,2]
[357132138,1743775848023,-500.0,0.00021973,2]
[357132139,1743775848032,-500.0,0.00021973,2]
[357132140,1743775848042,-500.0,0.00021973,2]
[357132141,1743775848051,-500.0,0.00021973,2]
[357132142,1743775848060,-500.0,0.00021973,2]
[357132143,1743775848070,-500.0,0.00021973,2]
[357132144,1743775848080,-500.0,0.00021973,2]
[357132145,1743775848089,-150890.42838022,0.00022,2]
[357132146,1743775848100,-151.0,0.00022,7]
[357132147,1743775848111,-151.0,0.00022,7]
[357132148,1743775848121,-151.0,0.00022,7]
[357132149,1743775848130,-151.0,0.00022,7]
[357132150,1743775848140,-151.0,0.00022,7]
[357132151,1743775848149,-151.0,0.00022,7]
[357132152,1743775848159,-151.0,0.00022,7]
[357132153,1743775848169,-151.0,0.00022,7]
[357132154,1743775848180,-151.0,0.00022,7]
[357132155,1743775848190,-151.0,0.00022,7]
[357132156,1743775848200,-189.38624,0.00022,7]
[357132157,1743775848214,-151.0,0.00022,7]
[357132158,1743775848224,-151.0,0.00022,7]
[357132159,1743775848234,-151.0,0.00022,7]
[357132160,1743775848244,-151.0,0.00022,7]
[357132161,1743775848254,-151.0,0.00022,7]
[357132162,1743775848264,-154.455678,0.00022,7]
[357132163,1743775848273,-301.160002,0.00022,7]
[357132164,1743775848283,-151.0,0.00022,7]
[357132165,1743775848292,-151.0,0.00022,7]
[357132166,1743775848302,-151.0,0.00022,7]
[357132167,1743775848312,-151.0,0.00022,7]
[357132168,1743775848321,-151.0,0.00022,7]
[357132169,1743775848331,-151.0,0.00022,7]
[357132170,1743775848341,-151.0,0.00022,7]
[357132171,1743775848351,-1198.00685,0.00022,7]
[357132172,1743775848362,-1198.00685,0.00022,7]
[357132173,1743775848372,-151.0,0.00022,7]
[357132174,1743775848382,-151.0,0.00022,7]
[357132175,1743775848392,-151.0,0.00022,7]
[357132176,1743775848403,-5000.0,0.00022602,2]
[357132177,1743775848413,-4859.35524914,0.00022728,4]
[357132178,1743775848423,-419.12848707,0.00023,3]
[357132179,1743775848433,-856.73082672,0.00023088,2]
[357132180,1743775848444,-529.98387815,0.00023296,2]
[357132181,1743775848454,-4859.35524914,0.00023831,5]
[357132182,1743775848465,-15000.0,0.00023836,2]
[357132183,1743775848475,-321156.74016836,0.00024,2]
[357132184,1743775848486,-151.0,0.00024,7]
[357132185,1743775848498,-151.0,0.00024,7]
[357132186,1743775848509,-151.0,0.00024,7]
[357132187,1743775848519,-151.0,0.00024,7]
[357132188,1743775848529,-151.0,0.00024,7]
[357132189,1743775848541,-151.0,0.00024,7]
[357132190,1743775848550,-151.0,0.00024,7]
[357132191,1743775848560,-151.0,0.00024,7]
[357132192,1743775848571,-151.0,0.00024,7]
[357132193,1743775848581,-151.0,0.00024,7]
[357132194,1743775848591,-151.0,0.00024,7]
[357132195,1743775848604,-151.0,0.00024,7]
[357132196,1743775848615,-151.0,0.00024,7]
[357132197,1743775848624,-151.0,0.00024,7]
[357132198,1743775848634,-151.0,0.00024,7]
[357132199,1743775848644,-151.0,0.00024,7]
[357132200,1743775848654,-151.0,0.00024,7]
[357132201,1743775848665,-151.0,0.00024,7]
[357132202,1743775848675,-151.0,0.00024,7]
[357132203,1743775848684,-160.0,0.00024,7]
[357132204,1743775848694,-151.0,0.00024,7]
[357132205,1743775848704,-151.0,0.00024,7]
[357132206,1743775848714,-151.0,0.00024,7]
[357132207,1743775848723,-1198.00685,0.00024,7]
[357132208,1743775848733,-1198.00685,0.00024,7]
[357132209,1743775848743,-151.0,0.00024,7]
[357132210,1743775848752,-151.0,0.00024,7]
[357132211,1743775848762,-158.238088,0.00024,7]
[357132212,1743775848772,-166.18564645,0.00024,4]
[357132213,1743775848781,-151.0,0.0002411,7]
[357132214,1743775848791,-151.0,0.0002411,7]
[357132215,1743775848801,-179.5112054,0.00024152,2]
[357132216,1743775848811,-318.0,0.00024604,3]
[357132217,1743775848821,-357.0,0.00024604,3]
[357132218,1743775848830,-357.0,0.00024604,3]
[357132219,1743775848840,-357.0,0.00024604,3]
[357132220,1743775848851,-200.19332465,0.00024604,3]
[357132221,1743775848863,-166.0,0.00024604,3]
[357132222,1743775848873,-168.0,0.00024604,3]
[357132223,1743775848883,-357.0,0.00024604,3]
[357132224,1743775848892,-357.0,0.00024604,3]
[357132225,1743775848902,-318.0,0.00024604,3]
[357132226,1743775848912,-357.0,0.00024604,3]
[357132227,1743775848921,-318.0,0.00024604,3]
[357132228,1743775848931,-318.0,0.00024604,3]
[357132229,1743775848940,-357.0,0.00024604,3]
[357132230,1743775848949,-318.0,0.00024604,3]
[357132231,1743775848959,-357.0,0.00024604,3]
[357132232,1743775848969,-318.0,0.00024604,3]
[357132233,1743775848978,-357.0,0.00024604,3]
[357132234,1743775848987,-318.0,0.00024604,3]
[357132235,1743775848997,-357.0,0.00024604,3]
[357132236,1743775849006,-318.0,0.00024604,3]
[357132237,1743775849016,-357.0,0.00024604,3]
[357132238,1743775849025,-318.0,0.00024604,3]
[357132239,1743775849035,-169.32119118,0.00024604,3]
[357132240,1743775849045,-357.0,0.00024604,3]
[357132241,1743775849054,-318.0,0.00024604,3]
[357132242,1743775849064,-318.0,0.00024604,3]
[357132243,1743775849074,-357.0,0.00024604,3]
[357132244,1743775849084,-357.0,0.00024604,3]
[357132245,1743775849094,-318.0,0.00024604,3]
[357132246,1743775849106,-318.0,0.00024604,3]
[357132247,1743775849116,-357.0,0.00024604,3]
[357132248,1743775849126,-362.21285865,0.00024604,3]
[357132249,1743775849136,-318.0,0.00024604,3]
[357132250,1743775849145,-318.0,0.00024604,3]
[357132251,1743775849155,-318.0,0.00024604,3]
[357132252,1743775849165,-318.0,0.00024604,3]
[357132253,1743775849175,-318.0,0.00024604,3]
[357132254,1743775849184,-318.0,0.00024604,3]
[357132255,1743775849194,-318.0,0.00024604,3]
[357132256,1743775849203,-318.0,0.00024604,3]
[357132257,1743775849214,-318.0,0.00024604,3]
[357132258,1743775849223,-318.0,0.00024604,3]
[357132259,1743775849233,-318.0,0.00024604,3]
[357132260,1743775849243,-318.0,0.00024604,3]
[357132261,1743775849253,-318.0,0.00024604,3]
[357132262,1743775849263,-318.0,0.00024604,3]
[357132263,1743775849273,-318.0,0.00024604,3]
[357132264,1743775849283,-318.0,0.00024604,3]
[357132265,1743775849293,-338.42789721,0.00024604,3]
[357132266,1743775849303,-3444.9,0.000247,14]
[357132267,1743775849313,-7996.36,0.000247,14]
[357132268,1743775849323,-3976.27,0.000247,14]
[357132269,1743775849332,-14629.23,0.000247,14]
[357132270,1743775849342,-318.0,0.00024741,3]
[357132271,1743775849354,-357.0,0.00024741,3]
[357132272,1743775849365,-357.0,0.00024741,3]
[357132273,1743775849375,-357.0,0.00024741,3]
[357132274,1743775849386,-357.0,0.00024741,3]
[357132275,1743775849396,-151.0,0.000248,7]
[357132276,1743775849406,-151.0,0.000248,7]
[357132277,1743775849416,-151.0,0.000248,7]
[357132278,1743775849427,-207.683707,0.000248,7]
[357132279,1743775849438,-151.0,0.000248,7]
[357132280,1743775849449,-151.0,0.000248,7]
[357132281,1743775849459,-151.0,0.000248,7]
[357132282,1743775849468,-419.12848707,0.000248,7]
[357132283,1743775849479,-151.0,0.000248,7]
[357132284,1743775849488,-151.0,0.000248,7]
[357132285,1743775849500,-228.127395,0.000248,7]
[357132286,1743775849510,-151.0,0.000248,7]
[357132287,1743775849520,-6031.0105702,0.000248,2]
[357132288,1743775849530,-174.957088,0.000248,7]
[357132289,1743775849542,-151.0,0.000248,7]
[357132290,1743775849553,-500.0,0.00024873,2]
[357132291,1743775849563,-11067.68636958,0.000249,3]
[357132292,1743775849573,-160.0,0.000249,3]
[357132293,1743775849584,-160.0,0.000249,3]
[357132294,1743775849595,-160.0,0.000249,3]
[357132295,1743775849606,-1491.3,0.000249,2]
[357132296,1743775849616,-151.0,0.000249,7]
[357132297,1743775849626,-151.0,0.000249,7]
[357132298,1743775849635,-151.0,0.000249,7]
[357132299,1743775849645,-151.0,0.000249,7]
[357132300,1743775849656,-151.0,0.000249,7]
[357132301,1743775849665,-151.0,0.000249,7]
[357132302,1743775849784,-151.0,0.000249,7]
[357132303,1743775849812,-151.0,0.000249,7]
[357132304,1743775849822,-151.0,0.000249,7]
[357132305,1743775849831,-151.0,0.000249,7]
[357132306,1743775849841,-151.0,0.000249,7]
[357132307,1743775849850,-151.0,0.000249,7]
[357132308,1743775849860,-151.0,0.000249,7]
[357132309,1743775849870,-151.0,0.000249,7]
[357132310,1743775849879,-632817.506341,0.000249,2]
[357132311,1743775849889,-151.0,0.000249,7]
[357132312,1743775849899,-161.668083,0.000249,7]
[357132313,1743775849909,-151.0,0.000249,7]
[357132314,1743775849918,-1198.00685,0.000249,7]
[357132315,1743775849927,-1198.00685,0.000249,7]
[357132316,1743775849937,-151.0,0.000249,7]
[357132317,1743775849947,-151.0,0.000249,7]
[357132318,1743775849956,-1000.0,0.0002492,5]
[357132319,1743775849968,-4859.35524914,0.00024934,5]
[357132320,1743775849978,-1000.0,0.0002494,5]
[357132321,1743775849988,-160.0,0.0002495,3]
[357132322,1743775849997,-278.75207114,0.0002495,5]
[357132323,1743775850007,-1000.0,0.0002496,5]
[357132324,1743775850016,-500.0,0.00024973,2]
[357132325,1743775850026,-1000.0,0.0002498,5]
[357132326,1743775850035,-1086.690036,0.0002498,5]
[357132327,1743775850046,-837.43324916,0.00025,2]
[357132328,1743775850055,-10015.62506002,0.00025,2]
[357132329,1743775850065,-1052.85101856,0.00025,2]
[357132330,1743775850075,-2593.30841913,0.00025,2]
[357132331,1743775850085,-10364.0,0.00025,2]
[357132332,1743775850094,-205.76236994,0.00025,2]
[357132333,1743775850105,-154.88097717,0.00025,2]
[357132334,1743775850114,-192.76078005,0.00025,2]
[357132335,1743775850124,-2000.0,0.00025,2]
[357132336,1743775850133,-2000.0,0.00025,3]
[357132337,1743775850143,-413.92446911,0.00025,2]
[357132338,1743775850153,-2000.0,0.00025,2]
[357132339,1743775850162,-500.0,0.00025,21]
[357132340,1743775850173,-500.0,0.00025,21]
[357132341,1743775850183,-500.0,0.00025,21]
[357132342,1743775850192,-500.0,0.00025,21]
[357132343,1743775850203,-142265.26401374,0.00025,2]
[357132344,1743775850214,-170.81576744,0.00025,2]
[357132345,1743775850224,-2000.0,0.00025,2]
[357132346,1743775850233,-2000.0,0.00025,2]
[357132347,1743775850244,-245378.1144242,0.00025,7]
[357132348,1743775850253,-2000.0,0.00025,14]
[357132349,1743775850263,-200.0,0.00025,3]
[357132350,1743775850273,-2000.0,0.00025,4]
[357132351,1743775850283,-2018.0,0.00025,4]
[357132352,1743775850292,-170.0,0.00025,10]
[357132353,1743775850301,-31274.29443023,0.00025,7]
[357132354,1743775850311,-27045.14042875,0.00025,7]
[357132355,1743775850321,-2000.0,0.00025,2]
[357132356,1743775850331,-10010.77865708,0.00025,2]
[357132357,1743775850341,-211.17031065,0.00025,2]
[357132358,1743775850352,-200.0,0.00025,7]
[357132359,1743775850361,-161.29386857,0.00025,14]
[357132360,1743775850371,-598.73,0.00025,2]
[357132361,1743775850380,-151.0,0.00025,2]
[357132362,1743775850391,-251.0,0.00025,7]
[357132363,1743775850401,-151.0,0.00025,7]
[357132364,1743775850411,-151.0,0.00025,7]
[357132365,1743775850421,-151.0,0.00025,7]
[357132366,1743775850431,-240.77698,0.00025,7]
[357132367,1743775850440,-299.78,0.00025,2]
[357132368,1743775850450,-299.78,0.00025,2]
[357132369,1743775850460,-500.0,0.00025,15]
[357132370,1743775850469,-151.0,0.00025,7]
[357132371,1743775850479,-151.0,0.00025,7]
[357132372,1743775850490,-153.205865,0.00025,7]
[357132373,1743775850501,-159.423077,0.00025,7]
[357132374,1743775850511,-1000.0,0.00025,5]
[357132375,1743775850520,-1000.0,0.00025,5]
[357132376,1743775850531,-151.0,0.00025,7]
[357132377,1743775850540,-274.982202,0.00025,7]
[357132378,1743775850550,-299.78,0.00025,2]
[357132379,1743775850559,-151.0,0.00025,7]
[357132380,1743775850569,-151.0,0.00025,7]
[357132381,1743775850579,-151.0,0.00025,7]
[357132382,1743775850588,-151.0,0.00025,7]
[357132383,1743775850598,-151.0,0.00025,7]
[357132384,1743775850608,-151.0,0.00025,7]
[357132385,1743775850618,-631.0,0.00025,2]
[357132386,1743775850627,-1579.2192,0.00025,2]
[357132387,1743775850637,-1579.2192,0.00025,2]
[357132388,1743775850647,-151.0,0.00025,7]
[357132389,1743775850657,-296.315146,0.00025,7]
[357132390,1743775850666,-500.0,0.00025,2]
[357132391,1743775850676,-151.0,0.00025,7]
[357132392,1743775850687,-151.0,0.00025,7]
[357132393,1743775850697,-1198.00685,0.00025,7]
[357132394,1743775850707,-1198.00685,0.00025,7]
[357132395,1743775850716,-1198.00685,0.00025,7]
[357132396,1743775850727,-1198.00685,0.00025,7]
[357132397,1743775850737,-151.0,0.00025,7]
[357132398,1743775850747,-271.309252,0.00025,7]
[357132399,1743775850757,-151.0,0.00025,7]
[357132400,1743775850767,-151.0,0.00025,7]
[357132401,1743775850776,-1000.0,0.00025,2]
[357132402,1743775850786,-169.888,0.00025077,2]
[357132403,1743775850796,-1170.83,0.00025078,2]
[357132404,1743775850806,-500.0,0.000252,15]
[357132405,1743775850816,-250.0,0.00025321,2]
[357132406,1743775850825,-1344.18788044,0.0002535,15]
[357132407,1743775850836,-1170.83,0.00025352,2]
[357132408,1743775850845,-533.41094461,0.000254,15]
[357132409,1743775850857,-900.0,0.00025469,3]
[357132410,1743775850867,-449.0,0.000255,2]
[357132411,1743775850877,-500.0,0.000255,2]
[357132412,1743775850886,-969.83263926,0.00025513,2]
[357132413,1743775850897,-1000.0,0.00025521,2]
[357132414,1743775850906,-210.0,0.00025521,2]
[357132415,1743775850916,-1171.05368414,0.00025626,2]
[357132416,1743775850926,-151.0,0.0002567,30]
[357132417,1743775850936,-237.78853756,0.00025841,4]
[357132418,1743775850946,-392.4197599,0.00025868,2]
[357132419,1743775850955,-38278.79614306,0.00026,10]
[357132420,1743775850965,-515.89361994,0.00026,2]
[357132421,1743775850975,-19900.0,0.00026,2]
[357132422,1743775850984,-1000.0,0.00026,7]
[357132423,1743775850994,-2000.0,0.00026,2]
[357132424,1743775851003,-1000.0,0.00026,26]
[357132425,1743775851013,-2000.0,0.00026,2]
[357132426,1743775851023,-2000.0,0.00026,2]
[357132427,1743775851032,-2000.0,0.00026,2]
[357132428,1743775851042,-151.0,0.00026,7]
[357132429,1743775851051,-151.0,0.00026,7]
[357132430,1743775851061,-165.75375,0.00026,7]
[357132431,1743775851071,-151.0,0.00026,7]
[357132432,1743775851081,-151.0,0.00026,7]
[357132433,1743775851091,-500.0,0.00026,2]
[357132434,1743775851101,-151.0,0.00026,7]
[357132435,1743775851114,-1198.00685,0.00026,7]
[357132436,1743775851125,-1198.00685,0.00026,7]
[357132437,1743775851135,-151.0,0.00026,7]
[357132438,1743775851144,-4859.35524914,0.00026038,6]
[357132439,1743775851153,-950.76558224,0.00026068,2]
[357132440,1743775851163,-270.0,0.00026068,2]
[357132441,1743775851172,-3976.27,0.000263,14]
[357132442,1743775851182,-14629.23,0.000263,14]
[357132443,1743775851191,-3444.9,0.000265,14]
[357132444,1743775851200,-1495.60966343,0.000265,14]
[357132445,1743775851217,-415.01105245,0.000265,14]
[357132446,1743775923467,23092.24478659,0.00025,30]
[357132447,1743776030082,277.27,0.00010959,2]
[357132448,1743776040700,231.06,0.00010959,2]
[357132449,1743776072423,353.0,0.00010959,2]
[357132450,1743776083154,802.3,0.00010959,2]
[357132451,1743776165552,277.27,0.00010959,2]
[357132452,1743776299686,831.84,0.00010959,2]
[357132512,1743777032402,-65491.07349454,0.00012599,2]
[357133087,1743777043430,-7500.99435976,0.00012599,2]
[357133164,1743777046628,-32712.22716043,0.00012599,2]
[357133165,1743777046639,-484.91631963,0.00013467,2]
[357133166,1743777046649,-500.0,0.00013567,2]
[357133167,1743777046658,-184.08665193,0.00013598,2]
[357133168,1743777046668,-500.0,0.00013698,2]
[357133169,1743777046677,-500.0,0.00013698,2]
[357133170,1743777046688,-500.0,0.00013698,2]
[357133171,1743777046698,-425.06200158,0.00013698,2]
[357133172,1743777046708,-500.0,0.00013698,2]
[357133173,1743777046717,-500.0,0.00013698,2]
[357133174,1743777046727,-500.0,0.00013698,2]
[357133175,1743777046737,-400.71025374,0.00013698,2]
[357133176,1743777046747,-500.0,0.00013698,2]
[357133177,1743777046757,-500.0,0.00013698,2]
[357133178,1743777046766,-500.85584008,0.00013698,2]
[357133179,1743777046776,-500.0,0.00013698,2]
[357133180,1743777046786,-500.0,0.00013698,2]
[357133182,1743777046795,-500.0,0.00013698,2]
[357133183,1743777046805,-500.0,0.00013698,2]
[357133185,1743777046814,-500.0,0.00013698,2]
[357133187,1743777046826,-500.0,0.00013698,2]
[357133189,1743777046835,-500.0,0.00013698,2]
[357133191,1743777046845,-500.0,0.00013698,2]
[357133193,1743777046855,-604.09064202,0.00013698,2]
[357133195,1743777046865,-318.62,0.00013698,2]
[357133197,1743777046875,-397.35886915,0.00013698,2]
[357133199,1743777046885,-347.05,0.00013698,2]
[357133201,1743777046895,-500.0,0.00013698,2]
[357133203,1743777046905,-500.0,0.00013698,2]
[357133205,1743777046917,-500.0,0.00013698,2]
[357133207,1743777046927,-500.0,0.00013698,2]
[357133209,1743777046936,-343.39711166,0.00013698,2]
[357133211,1743777046946,-500.0,0.00013698,2]
[357133212,1743777046955,-209.42557241,0.00013698,2]
[357133213,1743777046965,-280.45114486,0.00013698,2]
[357133214,1743777046974,-478.154999,0.00013698,2]
[357133215,1743777046984,-500.0,0.00013698,2]
[357133216,1743777046994,-500.0,0.00013698,2]
[357133217,1743777047003,-503.07776868,0.00013698,2]
[357133218,1743777047013,-508.05473336,0.00013698,2]
[357133219,1743777047023,-161.755359,0.00013698,2]
[357133220,1743777047032,-500.0,0.00013698,2]
[357133221,1743777047042,-499.98303645,0.00013698,2]
[357133222,1743777047052,-176.28226,0.00013699,2]
[357133223,1743777047062,-500.0,0.00013699,2]
[357133224,1743777047076,-3093.2249822,0.00014276,2]
[357133225,1743777047087,-500.0,0.00014464,2]
[357133226,1743777047097,-500.0,0.00014464,2]
[357133227,1743777047107,-500.0,0.00014464,2]
[357133228,1743777047117,-160.0,0.00014525,2]
[357133229,1743777047126,-2674.28666926,0.000151,2]
[357133230,1743777047138,-241.32648034,0.000151,2]
[357133231,1743777047148,-2915.61314948,0.000151,2]
[357133232,1743777047157,-500.0,0.000152,2]
[357133233,1743777047167,-2915.61314948,0.00015762,2]
[357133234,1743777047176,-781.25,0.00016439,2]
[357133235,1743777047186,-393.7419254,0.00016692,2]
[357133236,1743777047196,-500.0,0.00016692,2]
[357133237,1743777047206,-1410.67113447,0.00016693,2]
[357133238,1743777206739,798.4,0.00010959,2]
[357133239,1743777745437,185.26,0.00025,30]
[357133285,1743778232535,-500.0,0.00012498,2]
[357133287,1743778232546,-370.26889029,0.00012498,2]
[357133289,1743778232556,-500.0,0.00012498,2]
[357133291,1743778232568,-369.2894566,0.00012498,2]
[357133293,1743778232578,-463.22229381,0.00012498,2]
[357133295,1743778232587,-6243.58592417,0.00012499,2]
[357133306,1743778238353,-11028.25781766,0.00012499,2]
[357133307,1743778238364,-15638.83289938,0.00012499,2]
[357133308,1743778238397,-111697.57102023,0.00012499,2]
[357133309,1743778238408,-293.33861973,0.00012499,2]
[357133310,1743778238420,-880.60021299,0.00012499,2]
[357133311,1743778238444,-21685.66976472,0.00012499,2]
[357133312,1743778238456,-19904.39752745,0.00012499,2]
[357133315,1743778238467,-1150.60243313,0.00012499,2]
[357133316,1743778238479,-1599.13135451,0.00012499,2]
[357133317,1743778238490,-3579.72747579,0.00012499,2]
[357133318,1743778238501,-760.67365689,0.00012499,2]
[357133319,1743778238512,-2652.46156252,0.00012499,2]
[357133320,1743778238523,-2181.0092293,0.00012499,2]
[357133496,1743778240781,-772.79413623,0.00012499,2]
[357133498,1743778240792,-493.28256153,0.00012499,2]
[357133500,1743778240803,-1625.47420304,0.00012499,2]
[357133503,1743778240815,-2129.99278796,0.00012499,2]
[357133512,1743778240899,-19676.99524293,0.00012499,2]
[357133514,1743778240909,-500.0,0.000131,2]
[357133516,1743778240919,-500.0,0.000131,2]
[357133518,1743778240929,-219.76367,0.00013133,2]
[357133520,1743778240938,-219.76367,0.00013199,2]
[357133522,1743778240948,-500.0,0.00013698,2]
[357133524,1743778240958,-500.0,0.00013698,2]
[357133526,1743778240967,-500.0,0.00013698,2]
[357133528,1743778240977,-500.0,0.00013698,2]
[357133530,1743778240987,-500.0,0.00013698,2]
[357133532,1743778240996,-500.0,0.00013698,2]
[357133534,1743778241006,-500.0,0.00013698,2]
[357133537,1743778241016,-175.677044,0.00013699,2]
[357133538,1743778241026,-500.0,0.00013699,2]
[357133541,1743778241036,-500.0,0.00013699,2]
[357133542,1743778241045,-500.0,0.00013699,2]
[357133544,1743778241055,-160.12351801,0.00013699,2]
[357133547,1743778241064,-2577.02946347,0.000151,2]
[357133548,1743778241076,-2577.02946338,0.000151,2]
[357133550,1743778241086,-9057.68355375,0.00015505,2]
[357133810,1743778243595,-556.54228435,0.00015505,2]
[357133823,1743778243706,-1871.28475578,0.00015505,2]
[357134176,1743778247121,-13213.84784776,0.00015505,2]
[357134178,1743778247135,-200.64155836,0.00015505,2]
[357134180,1743778247146,-2577.02946338,0.00015693,2]
[357134181,1743778247156,-235.961928,0.00016526,2]
[357134182,1743778247167,-2577.02946338,0.0001659,2]
[357134183,1743778247176,-1289.41592475,0.00017486,2]
[357134185,1743778247191,-774.056639,0.00017486,2]